Cogmind - Beta 15 @@@ ROGUE MODE // 2025.06.10 @ 21:51:38 Player: Cracklepappy Result: Self-destructed Performance ------------- Evolutions (6) 3000 Regions Visited (14) 2800 Robots Destroyed (263) 1315 Value Destroyed (12561) 12561 Prototype IDs (38) 760 Alien Tech Used (0) 0 Bonus (8948) 8948 TOTAL SCORE: 29384 Bonus ------- High Alert Combat Kills 3445 Follower Combat Kills 2418 Entered Garrisons 200 Used RIF Installer 1000 Network Hubs Disabled 200 Delivered SUBCON Basin 2000 Registered with UFD 300 Met Optimus in HQ 500 Built Enhanced Grunts 300 A7 Reached Mainframe 300 Met R17 at Cetus 500 Friendly Fire -2215 Cogmind --------- Core Integrity 410/1150 Matter 157/300 Energy 410/410 System Corruption 10% Temperature Cool (0) Movement Rolling (89) Ox1 Location -4/Factory Parts ------- > --- POWER (2) -------- Light Nuclear Core Quantum Reactor > --- PROPULSION (6) --- Biometal Medium Treads Overtuned Huge Scrapsphere Overtuned Huge Scrapsphere Centrium Wheel > --- UTILITY (7) ------ Experimental Heat Sink Experimental Heat Sink Improved Coolant Injector High-capacity Storage Unit Experimental Optical Array Experimental Core Analyzer Tech Extrapolator > --- WEAPON (4) ------- Enhanced Nova Cannon Enhanced Nova Cannon Railgun > --- INVENTORY (20) --- Makeshift Microdissipator Network Matter Compressor (250) Deep Structural Scanner Experimental Sensor Array Experimental Signal Interpreter Experimental Core Analyzer Improved Weapon Cycler Graphene Brace Relay Coupler [NC] (35) Relay Coupler [NC] (30) Long-range Tractor Beam Overtuned Coil Gun Advanced Remote Datajack Improved Plasma Cutter CPS Tube (1) Kinetic Spear Peak State ------------ > --- POWER ------------ Micro Fission Core Micro Fission Core Meta Core > --- PROPULSION ------- Medium Armored Exoskeleton Medium Armored Exoskeleton > --- UTILITY ---------- Scrap Suit Advanced Heat Sink High-capacity Storage Unit Makeshift Salvage Targeting Computer Recoil Stabilizer Centrium Medium Armor Plating Tech Extrapolator Rainbow Chip > --- WEAPON ----------- Overtuned Beamcaster Overtuned Beamcaster Overtuned Coil Gun Overtuned Coil Gun Railgun Railgun > --- INVENTORY -------- Medium Armored Exoskeleton Medium Armored Exoskeleton Scrap Suit Makeshift Microdissipator Network Matter Compressor Experimental Sensor Array Centrium Medium Armor Plating Centrium Medium Armor Plating Centrium Medium Armor Plating Improved Hacking Suite Overtuned Coil Gun Improved Proton Missile Launcher Plasma Cutter Lance Botcube [Rating: 160] Favorites ----------- Power Micro Fission Core Engine Deuterium Engine Power Core Micro Fission Core Reactor Quantum Reactor Propulsion Light Treads Treads Light Treads Leg Medium Armored Exoskeleton Wheel Overtuned Huge Scrapsphere Hover Unit Antigrav System Utility High-capacity Storage Unit Device Scrap Suit Storage High-capacity Storage Unit Processor Tech Extrapolator Hackware Hacking Suite Protection Hardened Light Armor Plating Weapon Improved Light Cannon Energy Gun Overtuned Beamcaster Energy Cannon Enhanced Nova Cannon Ballistic Gun Overtuned Coil Gun Ballistic Cannon Improved Light Cannon Launcher Mini Grenade Launcher Special Weapon Mining Laser Impact Weapon Power Maul Piercing Weapon Lance Build | -11 -10 -10 -10 -7 -7 -5 -5 -5 -5 -5 -5 -4 -4 -4 ------- Run | Yrd Mat Min Sub Rec Scr Fac Ext Cet Arc Hub Gar Fac Was Fac Slots Evolved 12 | . . . . . . 10 . . . . . 2 . . Power 1 | . . . . . . 1 . . . . . . . . Propulsion 4 | . . . . . . 2 . . . . . 2 . . Utility 5 | . . . . . . 5 . . . . . . . . Weapon 2 | . . . . . . 2 . . . . . . . . Parts Attached 185 | 7 8 4 16 5 5 38 8 5 5 14 26 29 11 4 Power 33 | 1 2 1 1 1 1 8 1 . . 1 6 5 4 1 Engine 7 | 1 2 1 . 1 1 . . . . 1 . . . . Core 17 | . . . 1 . . 8 1 . . . 3 3 . 1 Reactor 9 | . . . . . . . . . . . 3 2 4 . Propulsion 27 | 2 . 3 3 . 2 5 . . . 1 4 4 3 . Treads 16 | 2 . 3 3 . 2 2 . . . . 2 . 2 . Leg 6 | . . . . . . 2 . . . 1 1 1 1 . Wheel 4 | . . . . . . . . . . . 1 3 . . Hover 1 | . . . . . . 1 . . . . . . . . Flight . | . . . . . . . . . . . . . . . Utility 56 | 2 3 . 4 2 . 10 4 3 4 8 6 7 1 2 Device 29 | 1 . . 2 . . 5 3 . 4 6 2 4 1 1 Storage 4 | 1 1 . . . . . . . . 1 . 1 . . Processor 8 | . . . . 1 . 3 . 1 . . 2 . . 1 Hackware 3 | . . . . . . 2 . . . . . 1 . . Protection 12 | . 2 . 2 1 . . 1 2 . 1 2 1 . . Artifact . | . . . . . . . . . . . . . . . Weapon 69 | 2 3 . 8 2 2 15 3 2 1 4 10 13 3 1 Energy Gun 8 | 1 . . . . . 2 2 . . . 1 2 . . Energy Cannon 2 | . . . . . . . . . . . . . 2 . Ballistic Gun 36 | 1 . . 3 2 . 7 1 . 1 4 7 9 . 1 Ballistic Cannon 9 | . 2 . 3 . 2 1 . . . . . . 1 . Launcher 3 | . 1 . 1 . . . . 1 . . . . . . Special Weapon 8 | . . . 1 . . 4 . . . . 2 1 . . Impact Weapon 1 | . . . . . . 1 . . . . . . . . Slashing Weapon . | . . . . . . . . . . . . . . . Piercing Weapon 2 | . . . . . . . . 1 . . . 1 . . Special Melee Weapon . | . . . . . . . . . . . . . . . Unidentified Prototypes 12 | . . . . . . . . 1 . 2 6 1 1 1 Corrupted Parts 2 | . . . . . . . . . . . 2 . . . System Corruption 17 | . . . . . . . . . . . 17 . . . Parts Lost 42 | . . . 2 1 . . . 1 . 17 3 13 . 5 Power 8 | . . . 1 1 . . . . . 3 . 2 . 1 Propulsion 2 | . . . . . . . . . . . 1 1 . . Utility 9 | . . . . . . . . . . 4 2 2 . 1 Weapon 23 | . . . 1 . . . . 1 . 10 . 8 . 3 Highest Loss Streak 5 | . . . 2 1 . . . 1 . 4 1 5 . 5 To Critical Strikes 1 | . . . . . . . . 1 . . . . . . Average Backups 16 | 5 18 19 17 8 18 15 13 13 13 13 14 18 19 19 Power . | . 1 1 . . . . . . . . . 1 . . Propulsion 1 | 2 1 4 2 . . 1 2 2 2 1 1 . . . Utility 8 | . 7 5 5 5 11 5 7 7 8 9 7 10 11 12 Weapon 5 | . 7 9 8 2 4 6 3 2 2 1 2 4 4 4 Tool/Special . | . . . . . . . . . . . . . . . Unused Backups 80 | 1 12 6 5 . 17 5 5 2 1 . 2 3 9 12 Power 3 | . . . . . . . . . . . . 2 . 1 Propulsion 4 | . 4 . . . . . . . . . . . . . Utility 50 | 1 4 4 3 . 15 2 2 1 1 . 2 . 5 10 Weapon 22 | . 4 2 2 . 2 3 3 1 . . . 1 3 1 Tool/Special 1 | . . . . . . . . . . . . . 1 . Average Slot Usage (%) 90 | . 99 100 99 87 99 74 78 78 78 74 85 77 83 83 Engine 6 | . 14 14 7 1 14 3 . . . 1 . . . . Core 3 | . . . 6 . . 5 12 12 12 8 3 2 . . Reactor 1 | . . . . . . . . . . . 6 7 9 9 Treads 17 | . 27 28 28 28 28 5 . . . . 9 . 4 5 Leg 2 | . . . . . . 4 8 8 8 8 . 8 . . Wheel 1 | . . . . . . . . . . . 4 2 14 15 Device 5 | . . . 3 7 . 9 11 9 11 15 15 8 9 10 Storage 10 | . 14 14 14 14 14 4 4 4 4 4 4 5 5 5 Processor 8 | . . . . 4 14 11 12 14 12 11 6 15 15 15 Protection 4 | . 13 14 10 2 . . 3 4 4 1 5 4 . . Energy Gun 1 | . . . . . . 2 8 8 8 3 3 . . . Ballistic Gun 11 | . 4 . 5 14 11 11 15 11 15 14 17 19 15 18 Ballistic Cannon 11 | . 23 28 19 14 16 3 . . . . . . . 2 Peak Build Rating 160 | 8 13 14 33 33 35 139 151 159 159 160 135 146 143 143 Average Rating 66 | 6 12 13 17 27 27 104 149 155 158 145 99 137 135 135 On Entrance 82 | . 8 12 14 33 25 35 139 151 157 159 115 135 117 137 Naked Turns . | . . . . . . . . . . . . . . . Heaviest Build 115 | 12 58 60 60 55 61 95 99 102 100 101 104 97 114 115 Greatest Support 100 | 40 40 40 40 40 50 100 100 100 100 100 100 100 56 56 Greatest Overweight (x) 33 | . 2 1 1 1 1 1 . 1 33 1 3 5 3 2 Average Overweight (x) 1 | . . 1 1 1 1 . . . 6 . 2 . 1 1 Largest Inventory Capacity 20 | 8 20 20 20 20 20 20 20 20 20 20 20 20 20 20 Average Capacity 19 | 7 19 20 20 20 20 20 20 20 20 20 20 20 20 20 Most Carried 20 | 8 20 20 20 20 20 20 20 20 20 20 20 20 20 20 Average Carried 19 | 5 18 19 18 18 19 19 19 19 19 19 19 19 19 19 Final Capacity 20 | 8 20 20 20 20 20 20 20 20 20 20 20 20 20 20 Final Carried 20 | 8 20 20 20 20 20 20 20 20 20 17 20 20 20 16 Class Distribution -------------------- 56% | Mutant 11% | Scavenger-Executioner 10% | Scavenger-Tank 9% | Scavenger-Scrapper 5% | Scavenger-Gunner 3% | Scavenger-Mutant Dominant Class ---------------- Mutant | -10/Materials Mutant | -10/Mines Mutant | -10/Subcaves Mutant | -7/Recycling Mutant | -7/Scraptown Scavenger-Gunner | -5/Factory Scavenger-Executioner | -5/Extension Scavenger-Scrapper | -5/Cetus Scavenger-Executioner | -5/Archives Scavenger-Gunner | -5/Hub_04(d) Scavenger-Tank | -5/Garrison Scavenger-Tank | -4/Factory Scavenger-Scrapper | -4/Waste Scavenger-Scrapper | -4/Factory Resources | -11 -10 -10 -10 -7 -7 -5 -5 -5 -5 -5 -5 -4 -4 -4 ----------- Run | Yrd Mat Min Sub Rec Scr Fac Ext Cet Arc Hub Gar Fac Was Fac Matter Collected 12099 | 321 804 275 338 207 77 1362 1127 184 146 1405 1820 2704 474 855 Remotely 467 | . . . . . . . . . . . . 467 . . Salvage Created 14828 | 182 757 144 70 214 . 1150 2536 454 260 1434 2126 3657 841 1003 Parts 724 | 15 63 15 13 6 . 68 112 16 19 70 94 162 20 51 Haulers Intercepted 2 | . 2 . . . . . . . . . . . . . Recyclers Shooed 9 | . . . . . . 3 3 . . . . 1 . 2 Parts Field Recycled . | . . . . . . . . . . . . . . . Retrieved Matter . | . . . . . . . . . . . . . . . Parts Self-Destructed 2 | . . . 2 . . . . . . . . . . . Prevented . | . . . . . . . . . . . . . . . Kills | -11 -10 -10 -10 -7 -7 -5 -5 -5 -5 -5 -5 -4 -4 -4 ------- Run | Yrd Mat Min Sub Rec Scr Fac Ext Cet Arc Hub Gar Fac Was Fac Combat Hostiles Destroyed 205 | . 23 7 7 3 . 11 33 5 2 21 35 42 . 16 Guns 139 | . 2 . . 2 . 11 32 . 2 15 26 38 . 11 Cannons 38 | . 18 7 7 1 . . . . . . . . . 5 AOE 10 | . 3 . . . . . . 1 . 2 4 . . . Classes Destroyed 22 | 3 5 . 1 1 . 4 5 . . 1 1 1 . . Worker 13 | 1 2 1 . . . 1 1 . . 1 . 3 . 3 Builder 8 | . . . . . . 1 1 . . 2 . 4 . . Tunneler 5 | 4 . . . . . . . . . . . 1 . . Hauler 2 | . 2 . . . . . . . . . . . . . Recycler 8 | 1 1 . . 1 . 1 1 . . . . 3 . . Mechanic 1 | . . . . . . . 1 . . . . . . . Operator 3 | . 1 . . . . . . . 2 . . . . . Watcher 7 | . 1 . . . . 1 . 2 . 1 . 2 . . Swarmer 36 | . 6 3 . . . 4 4 . . 2 9 5 . 3 Saboteur 1 | . . . . . . . . . . . . 1 . . Grunt 78 | . 17 4 . . . 2 15 . . 5 11 19 . 5 Brawler 11 | . . . . . . . 2 . . . 6 3 . . Duelist 5 | . . . . . . . 2 . . . 1 2 . . Protector 1 | . . . . . . . . . . 1 . . . . Sentry 22 | . . . . 3 . 1 4 . 2 3 5 2 . 2 Demolisher 2 | . . . . . . . 2 . . . . . . . Hunter 14 | . . . . . . 1 1 . . 5 . 4 . 3 Programmer 18 | . . . . . . 3 1 . . 4 1 6 . 3 Behemoth 3 | . . . . . . . 2 . . 1 . . . . Cetus Guard 5 | . . . . . . . . 5 . . . . . . Executioner 2 | . . . . . . . . . . . 2 . . . Subdweller 7 | . . . 7 . . . . . . . . . . . Scrapoid 7 | . . . . . . 4 . . . . . 3 . . Martyr 4 | . . . . . . . . . . . . . 4 . Best Kill Streak 11 | 2 5 3 3 3 . 4 9 4 4 6 5 11 . 8 Combat Bots Only 9 | . 3 3 3 2 . 4 9 3 2 5 5 8 . 8 Max Kills in Single Turn 4 | 1 4 1 1 1 . 2 3 1 1 2 2 2 1 2 Gunslinging 2 | . . . . . . 1 2 . . . . 1 . . Exploded 2 | . 2 . . . . . . 1 . 1 1 . . . Melee . | . . . . . . . . . . . . . . . Uniques/NPCs Destroyed . | . . . . . . . . . . . . . . . Combat | -11 -10 -10 -10 -7 -7 -5 -5 -5 -5 -5 -5 -4 -4 -4 -------- Run | Yrd Mat Min Sub Rec Scr Fac Ext Cet Arc Hub Gar Fac Was Fac Hostile Shots Fired 1365 | . 55 17 44 135 . 61 55 19 . 274 154 433 . 118 Missed 444 | . 19 5 19 58 . 16 21 7 . 74 41 142 . 42 Hits 921 | . 36 12 25 77 . 45 34 12 . 200 113 291 . 76 Melee 7 | . . . . . . . . . . 3 4 . . . Projectile 914 | . 36 12 25 77 . 45 34 12 . 197 109 291 . 76 AOE 2 | . . . 1 . . . . . . 1 . . . . Critical Strikes 46 | . . . . . . 1 4 4 . 12 2 17 . 6 Actively Blocked 25 | . . . . . . . . . . 10 2 13 . . Damage Taken 17752 | . 379 142 626 570 . 823 711 192 . 4763 2328 5767 . 1451 Core 1965 | . 39 43 60 95 . 90 25 . . 471 402 658 . 82 Absorbed by Shields 413 | . . . . . . . 228 109 . . 76 . . . Ignored by Resistances 79 | . . . . . . 19 . . . 60 . . . . Regen/Repaired (Parts) 1482 | . 231 . . . . 22 128 . 20 51 143 15 782 90 Core Remaining (%) 35 | 100 . . . . 5 . . . . . 1 . . . Volleys Fired 657 | 17 77 13 40 14 . 95 64 8 7 83 97 104 4 34 Largest 6 | 2 2 2 2 2 . 4 6 1 4 6 4 4 4 4 Hottest 334 | 60 66 66 100 63 . 196 329 43 264 334 208 252 134 310 Shots Fired 1797 | 33 129 26 61 28 . 201 256 8 26 281 238 373 13 124 Gun 1508 | 33 25 . . 14 . 177 255 . 26 273 223 362 11 109 Cannon 211 | . 102 26 53 14 . . . . . . . . 1 15 Launcher 45 | . 2 . 2 . . . . 8 . 8 14 11 . . Special 33 | . . . 6 . . 24 1 . . . 1 . 1 . Kinetic 1567 | 17 127 26 53 28 . 154 225 . 19 241 196 356 11 114 Thermal 177 | 16 . . 6 . . 42 30 . 7 32 27 6 1 10 Explosive 4 | . 2 . 2 . . . . . . . . . . . Electromagnetic 41 | . . . . . . . . 8 . 8 14 11 . . Robot Hit Streak 24 | 6 8 6 17 11 . 14 24 6 9 13 17 7 4 5 Robot Miss Streak 8 | 2 4 2 1 2 . 5 5 . 2 7 5 8 2 6 Penetration Max 2 | . . . . . . 1 2 . . 1 1 2 . 2 Secondary Targets 37 | . . . . . . 4 9 . . 2 6 14 . 2 Max Gunslinging Chain 2 | . . . . . . 1 2 . . 1 1 1 . 1 Shots Hit Robots 1053 | 22 74 16 38 23 . 119 154 5 21 168 141 201 18 53 Core Hits 522 | 7 34 10 14 10 . 50 70 12 6 63 71 128 9 38 Critical Kills 10 | . . . . . . 2 5 . . 1 1 1 . . Critical Parts Destroyed 30 | . . . . . . 6 11 . . 4 1 6 . 2 Critical Strikes 65 | . 2 . 1 2 . 10 24 . . 7 3 11 3 2 Burn 11 | . . . . . . 1 6 . . 1 1 2 . . Destroy 44 | . . . . . . 9 18 . . 6 2 7 . 2 Blast 5 | . 2 . 1 2 . . . . . . . . . . Impale 5 | . . . . . . . . . . . . 2 3 . Melee Attacks 30 | . . . . . . . . . 2 7 . 9 11 1 Impact . | . . . . . . . . . . . . . . . Slashing . | . . . . . . . . . . . . . . . Piercing 30 | . . . . . . . . . 2 7 . 9 11 1 Sneak Attacks 13 | . . . . . . . . . 2 . . 6 5 . Combat Hostiles . | . . . . . . . . . . . . . . . Follow-up Attacks . | . . . . . . . . . . . . . . . Damage Inflicted 32627 | 258 1745 382 782 488 . 2435 5519 878 652 4918 4383 7261 1060 1866 Guns 24540 | 258 206 . . 250 . 2237 5474 . 528 4290 3480 6077 191 1549 Cannons 2906 | . 1253 346 758 232 . . . . . . . . . 317 Explosions 3400 | . 279 . . . . . . 878 . 628 903 712 . . Melee 1454 | . . . . . . . . . 124 . . 461 869 . Ramming 126 | . 7 36 . 6 . 21 45 . . . . 11 . . Kinetic 24849 | 150 1459 346 758 482 . 1911 4800 . 375 3646 3139 5947 191 1645 Thermal 2798 | 108 . . 24 . . 503 674 . 153 644 341 130 . 221 Explosive 279 | . 279 . . . . . . . . . . . . . Electromagnetic 3121 | . . . . . . . . 878 . 628 903 712 . . Impact . | . . . . . . . . . . . . . . . Slashing . | . . . . . . . . . . . . . . . Piercing 1454 | . . . . . . . . . 124 . . 461 869 . Highest Corruption 27 | . . . . . . 7 7 2 2 10 27 10 10 10 Average Corruption 9 | . . . . . . 6 2 2 1 5 23 4 10 10 Corruption Purged 7 | . . . . . . . 5 . 2 . . . . . Corruption Blocked . | . . . . . . . . . . . . . . . Effects 308 | . . . . . . 44 30 5 2 10 99 23 54 41 Message Errors 69 | . . . . . . 8 7 . . 2 30 5 13 4 Matter Fused 82 | . . . . . . 19 6 3 . 3 20 4 19 8 Heat Flow Errors 30 | . . . . . . 3 5 1 . . 7 2 6 6 Energy Discharges 36 | . . . . . . 5 2 . . 2 14 2 5 6 Parts Rejected 4 | . . . . . . . . . . 2 . 1 . 1 Parts Fused 1 | . . . . . . . . . 1 . . . . . Data Loss (minor) 26 | . . . . . . 1 3 1 1 1 7 5 3 4 Data Loss (major) 10 | . . . . . . 3 2 . . . 1 1 2 1 Misfires 14 | . . . . . . 3 2 . . . 4 1 2 2 Alerts 5 | . . . . . . . 1 . . . 1 . 2 1 Misdirections 1 | . . . . . . . . . . . . . . 1 Weapon Failures 30 | . . . . . . 2 2 . . . 15 2 2 7 Overload Shots . | . . . . . . . . . . . . . . . Overflow Damage 190 | . 18 . . . . . . 18 . 14 . 48 92 . Projectiles 18 | . 18 . . . . . . . . . . . . . Explosions 32 | . . . . . . . . 18 . 14 . . . . Melee 140 | . . . . . . . . . . . . 48 92 . Knockbacks 31 | . 16 2 13 . . . . . . . . . . . Impact 2 | . . 2 . . . . . . . . . . . . Kinetic 27 | . 14 . 13 . . . . . . . . . . . Secondary 2 | . 2 . . . . . . . . . . . . . Self-Inflicted Damage 37 | . . . . . . . . . . . 18 19 . . Shots 2 | . . . . . . . . . . . 1 1 . . Rammed 9 | . 2 5 . 1 . . . . . . . 1 . . Targets Rammed 18 | . 2 6 . 1 . 3 4 . . . . 2 . . Kicked 8 | . . . . . . 3 4 . . . . 1 . . Crushed 1 | . . 1 . . . . . . . . . . . . Highest Temperature 511 | . 264 123 . 114 . 334 511 161 351 333 243 369 137 313 Average Temperature 95 | . 64 51 . 62 . 95 115 41 144 140 57 100 52 85 Received Heat Transfer 2409 | . 168 57 51 156 . 36 179 . . 354 249 928 . 231 Effects 9 | . . . . . . 1 6 . . 2 . . . . Shutdowns 4 | . . . . . . . 4 . . . . . . . Energy Bleed 1 | . . . . . . 1 . . . . . . . . Interference 4 | . . . . . . . 2 . . 2 . . . . Siege Activations . | . . . . . . . . . . . . . . . Martial Activations . | . . . . . . . . . . . . . . . Shielding Activations . | . . . . . . . . . . . . . . . Robots Disrupted . | . . . . . . . . . . . . . . . Combat Hostiles . | . . . . . . . . . . . . . . . Robots Corrupted 17 | . . . . . . . . 5 . 3 5 4 . . Combat Hostiles 16 | . . . . . . . . 4 . 3 5 4 . . Parts Fried 28 | . . . . . . . 2 9 . 6 2 9 . . Impact Corruptions . | . . . . . . . . . . . . . . . Robots Melted 2 | . . . . . . . 1 . . 1 . . . . Combat Hostiles 2 | . . . . . . . 1 . . 1 . . . . Parts Melted 22 | . . . . . . 1 17 . . 4 . . . . Heat Transferred 5432 | 250 . . 50 . . 885 1675 . 225 1200 629 333 . 185 Parts Sabotaged . | . . . . . . . . . . . . . . . Parts Stolen . | . . . . . . . . . . . . . . . Parts Stripped . | . . . . . . . . . . . . . . . Power Chain Reactions 2 | . . . . . . . . . . 1 1 . . . Alert | -11 -10 -10 -10 -7 -7 -5 -5 -5 -5 -5 -5 -4 -4 -4 ------- Run | Yrd Mat Min Sub Rec Scr Fac Ext Cet Arc Hub Gar Fac Was Fac Maximum Alert Level 4 | . 1 1 . . . 2 4 3 2 2 4 4 2 3 Low Security (%) 47 | 100 53 99 . 100 . 45 10 . 52 15 . . 57 51 Level 1 25 | . 46 . . . . 52 43 . 31 79 6 . 28 3 Level 2 10 | . . . . . . 1 27 . 16 4 24 11 13 42 Level 3 12 | . . . . . . . 12 100 . . 35 80 . 2 Level 4 4 | . . . . . . . 5 . . . 32 8 . . Level 5 . | . . . . . . . . . . . . . . . High Security . | . . . . . . . . . . . . . . . Max Security . | . . . . . . . . . . . . . . . Peak Influence 1508 | 10 379 201 . 40 . 404 1508 1028 515 441 1248 1430 500 829 Initial 840 | . . 136 . . . . 183 840 387 . 215 655 500 . Average 317 | 1 152 36 . 3 . 192 466 936 213 283 884 898 183 322 Influence Increases 10072 | 30 747 206 . 193 . 874 1969 358 238 1256 1063 1787 6 1345 Destroy 0b10 Robot/C 5040 | . 460 140 . 60 . 420 880 160 80 540 700 980 . 620 Destroy 0b10 Robot/NC 280 | 30 35 5 . 5 . 25 35 10 15 35 . 70 . 15 Destroy Leader 788 | . 86 30 . . . 92 102 . . 154 30 164 . 130 Allied During Kill 1756 | . . . . . . 140 691 165 95 119 . 47 . 499 Successful Hack 131 | . 17 . . 7 . 13 45 . . 14 . 28 . 7 Select Force Hacks 170 | . 30 . . 120 . 20 . . . . . . . . Disable Machine 675 | . 45 15 . . . 60 60 15 30 240 30 180 . . Anti-Garrison Action 250 | . . . . . . . . . . . 250 . . . Destroy Structure 817 | . 29 1 . 1 . 104 156 8 18 154 8 258 6 74 Partial Spotted 15 | . . . . . . . . . . . . 15 . . Lose Combat Pursuer 150 | . 45 15 . . . . . . . . 45 45 . . Influence Decreases 9249 | 30 397 550 6 193 . 499 842 892 1206 948 123 1605 1436 522 Entered New Map 3269 | . . 214 4 . . . 192 662 581 . 93 593 930 . Time Decay 4352 | 30 397 336 2 193 . 409 550 180 545 384 . 522 506 298 Lost Part 370 | . . . . . . . . 10 . 150 30 130 . 50 Lost Ally 658 | . . . . . . 90 100 40 80 114 . 60 . 174 Purge Threat 600 | . . . . . . . . . . 300 . 300 . . Squads Dispatched 51 | . 4 . . . . 8 6 . . 13 . 12 . 8 Investigation 17 | . 3 . . . . 3 2 . . 2 . 4 . 3 Extermination 10 | . . . . . . 3 . . . 2 . 3 . 2 Reinforcement 13 | . 1 . . . . 2 2 . . 5 . 2 . 1 Assault 5 | . . . . . . . 2 . . . . 3 . . Garrison 6 | . . . . . . . . . . 4 . . . 2 Intercept . | . . . . . . . . . . . . . . . Searches Triggered . | . . . . . . . . . . . . . . . Construction Impeded 6 | . . . . . . 1 2 . . 1 . 2 . . Haulers Reinforced . | . . . . . . . . . . . . . . . Active Scanning Responses . | . . . . . . . . . . . . . . . Cargo Convoy Interrupts 1 | . . . . . . . . . . . . . . 1 Stealth | -11 -10 -10 -10 -7 -7 -5 -5 -5 -5 -5 -5 -4 -4 -4 --------- Run | Yrd Mat Min Sub Rec Scr Fac Ext Cet Arc Hub Gar Fac Was Fac Distress Signals 12 | . 1 . . . . 5 2 2 . 1 . 1 . . Communications Jammed . | . . . . . . . . . . . . . . . Distress Signals . | . . . . . . . . . . . . . . . Times Spotted 308 | . 32 6 7 3 . 28 50 8 4 37 37 67 . 29 Peak Tracking Total 12 | . 4 3 3 2 . 4 8 5 2 8 4 8 . 12 Tactical Retreats 6 | . 2 1 . . . . . . . . 2 1 . . Traps | -11 -10 -10 -10 -7 -7 -5 -5 -5 -5 -5 -5 -4 -4 -4 ------- Run | Yrd Mat Min Sub Rec Scr Fac Ext Cet Arc Hub Gar Fac Was Fac Traps Triggered 22 | . 2 . . . . 1 1 . . 1 9 2 . 6 Indirectly 1 | . . . . . . . . . . . 1 . . . Trap Hack Attempts . | . . . . . . . . . . . . . . . Triggered . | . . . . . . . . . . . . . . . Disarmed . | . . . . . . . . . . . . . . . Reprogrammed . | . . . . . . . . . . . . . . . Reused . | . . . . . . . . . . . . . . . Traps Extracted . | . . . . . . . . . . . . . . . Installed . | . . . . . . . . . . . . . . . Triggered . | . . . . . . . . . . . . . . . Machines | -11 -10 -10 -10 -7 -7 -5 -5 -5 -5 -5 -5 -4 -4 -4 ---------- Run | Yrd Mat Min Sub Rec Scr Fac Ext Cet Arc Hub Gar Fac Was Fac Machines Disabled 57 | . 4 1 1 . . 4 9 1 2 16 7 12 . . Max in Single Turn 3 | . 2 1 1 . . 2 1 1 1 3 1 1 . . Garrison Access 3 | . . . . . . 1 . . . . . . . 2 Garrison Relay 2 | . . . . . . . . . . . 2 . . . Phase Generator 1 | . . . . . . . . . . . 1 . . . Network Hub 1 | . . . . . . . . . . 1 . . . . Machines Repaired . | . . . . . . . . . . . . . . . Machines Dismantled 4 | . . . . . . . 2 1 . . 1 . . . Machines Sabotaged . | . . . . . . . . . . . . . . . Overloaded Fab Kills . | . . . . . . . . . . . . . . . Hacking | -11 -10 -10 -10 -7 -7 -5 -5 -5 -5 -5 -5 -4 -4 -4 --------- Run | Yrd Mat Min Sub Rec Scr Fac Ext Cet Arc Hub Gar Fac Was Fac Machines Accessed 68 | . 9 . 4 8 6 7 13 1 . 5 1 7 . 7 Terminals 34 | . 6 . . 4 . 3 11 1 . 4 1 2 . 2 Fabricators 3 | . . . . . . 1 . . . . . 1 . 1 Repair Stations 1 | . 1 . . . . . . . . . . . . . Recycling Units 15 | . 2 . . 4 . 2 2 . . . . 3 . 2 Scanalyzers 1 | . . . . . . . . . . . . 1 . . Garrison Access 4 | . . . . . . 1 . . . 1 . . . 2 Total Hacks 172 | . 33 . 8 16 28 15 25 1 . 13 2 21 . 10 Successful 97 | . 14 . 8 6 28 8 11 . . 5 . 11 . 6 Failed 75 | . 19 . . 10 . 7 14 1 . 8 2 10 . 4 Catastrophic 11 | . . . . 2 . 1 2 . . 3 . 2 . 1 Database Lockouts . | . . . . . . . . . . . . . . . Manual 69 | . 21 . . 9 . 5 10 1 . 7 . 11 . 5 Terminals 91 | . 20 . . 11 . 11 23 1 . 12 2 8 . 3 Fabricators 5 | . . . . . . 1 . . . . . 3 . 1 Repair Stations 9 | . 9 . . . . . . . . . . . . . Recycling Units 24 | . 4 . . 5 . 2 2 . . . . 7 . 4 Scanalyzers 3 | . . . . . . . . . . . . 3 . . Garrison Access 4 | . . . . . . 1 . . . 1 . . . 2 Terminal Hacks 59 | . 2 . 8 1 28 4 8 . . 4 . 3 . 1 Record 28 | . . . 5 . 23 . . . . . . . . . Part Schematic 4 | . . . . 1 . 1 2 . . . . . . . Robot Schematic 1 | . 1 . . . . . . . . . . . . . Robot Analysis 5 | . . . . . 4 . . . . 1 . . . . Prototype ID Bank 1 | . 1 . . . . . . . . . . . . . Open Door 5 | . . . 1 . . 1 3 . . . . . . . Branch Access Points 1 | . . . . . . . . . . . . . . 1 Terminal Index 1 | . . . . . . . . . . 1 . . . . Recycling Unit Index 1 | . . . . . . 1 . . . . . . . . Unreport Threat 4 | . . . . . . . . . . 2 . 2 . . Locate Traps 4 | . . . . . . . 3 . . . . 1 . . Hauler Manifests 1 | . . . . . . 1 . . . . . . . . Proto ID Catalog 2 | . . . 1 . 1 . . . . . . . . . Release Object 1 | . . . 1 . . . . . . . . . . . Fabricator Hacks 4 | . . . . . . . . . . . . 3 . 1 Network Status 2 | . . . . . . . . . . . . 1 . 1 Load Schematic 1 | . . . . . . . . . . . . 1 . . Build 1 | . . . . . . . . . . . . 1 . . Repair Station Hacks 6 | . 6 . . . . . . . . . . . . . Scan Component 3 | . 3 . . . . . . . . . . . . . Repair 3 | . 3 . . . . . . . . . . . . . Recycling Unit Hacks . | . . . . . . . . . . . . . . . Scanalyzer 2 | . . . . . . . . . . . . 2 . . Insert Component 2 | . . . . . . . . . . . . 2 . . Garrison Access Hacks 4 | . . . . . . 1 . . . 1 . . . 2 Unlock Access 1 | . . . . . . . . . . 1 . . . . Seal Access 3 | . . . . . . 1 . . . . . . . 2 Unauthorized Hacks 22 | . 6 . . 5 . 3 3 . . . . 3 . 2 Terminals 6 | . 5 . . . . . 1 . . . . . . . Assimilate 1 | . . . . . . . 1 . . . . . . . Skim 5 | . 5 . . . . . . . . . . . . . Fabricators 1 | . . . . . . 1 . . . . . . . . Download 1 | . . . . . . 1 . . . . . . . . Repair Stations . | . . . . . . . . . . . . . . . Recycling Units 15 | . 1 . . 5 . 2 2 . . . . 3 . 2 Reject 1 | . . . . 1 . . . . . . . . . . Tunnel 5 | . 1 . . 4 . . . . . . . . . . Fedlink 6 | . . . . . . . 2 . . . . 2 . 2 Scrapoids 3 | . . . . . . 2 . . . . . 1 . . Scanalyzers . | . . . . . . . . . . . . . . . Garrison Access . | . . . . . . . . . . . . . . . Data Cores Recovered 1 | . . . . . . . 1 . . . . . . . Used . | . . . . . . . . . . . . . . . Hacking Detections 32 | . 6 . . 4 . 2 8 1 . 4 1 4 . 2 Full Trace Events 4 | . 1 . . 1 . . . . . 1 . 1 . . Feedback Events . | . . . . . . . . . . . . . . . Feedback Blocked . | . . . . . . . . . . . . . . . Robot Schematics Acquired 1 | . 1 . . . . . . . . . . . . . Robots Built . | . . . . . . . . . . . . . . . Authchips . | . . . . . . . . . . . . . . . Time . | . . . . . . . . . . . . . . . Total Robot Build Rating . | . . . . . . . . . . . . . . . Part Schematics Acquired 45 | . . . . 5 14 6 7 2 1 . 2 3 1 4 Parts Built 1 | . . . . . . . . . . . . 1 . . Authchips . | . . . . . . . . . . . . . . . Time 84 | . . . . . . . . . . . . 84 . . Total Part Build Rating 4 | . . . . . . . . . . . . 4 . . Parts Repaired 3 | . 3 . . . . . . . . . . . . . Time 90 | . 90 . . . . . . . . . . . . . Parts Recycled . | . . . . . . . . . . . . . . . Recycled Matter . | . . . . . . . . . . . . . . . Retrieved Matter . | . . . . . . . . . . . . . . . Retrieved Components . | . . . . . . . . . . . . . . . Parts Scanalyzed . | . . . . . . . . . . . . . . . Part Schematics Acquired . | . . . . . . . . . . . . . . . Parts Damaged . | . . . . . . . . . . . . . . . Bothacking | -11 -10 -10 -10 -7 -7 -5 -5 -5 -5 -5 -5 -4 -4 -4 ------------ Run | Yrd Mat Min Sub Rec Scr Fac Ext Cet Arc Hub Gar Fac Was Fac Used RIF Installer 2 | . . . . . . . . . . . 2 . . . Command Fork 1 | . . . . . . . . . . . 1 . . . Robots Hacked . | . . . . . . . . . . . . . . . Non-combat . | . . . . . . . . . . . . . . . Combat . | . . . . . . . . . . . . . . . Robot Hacks Applied . | . . . . . . . . . . . . . . . Relay Couplers Released 10 | . . . . . . . . . . . 10 . . . Machine Destruction 7 | . . . . . . . . . . . 7 . . . Programmers 3 | . . . . . . . . . . . 3 . . . Fabnet Peak Effective % . | . . . . . . . . . . . . . . . Robots Rewired 11 | . . . . . . . 10 . . . 1 . . . Allies Hacked 1 | . . . . . . 1 . . . . . . . . Hacks Repelled . | . . . . . . . . . . . . . . . Allies | -11 -10 -10 -10 -7 -7 -5 -5 -5 -5 -5 -5 -4 -4 -4 -------- Run | Yrd Mat Min Sub Rec Scr Fac Ext Cet Arc Hub Gar Fac Was Fac Total Allies 61 | . . . . . . 11 18 5 . . 1 5 21 . Largest Group 20 | . . . . . . 5 13 14 13 8 1 5 20 16 Highest-Rated Group 868 | . . . . . . 241 519 868 772 502 119 235 776 631 Highest-Rated Ally 159 | . . . . . . 51 159 143 143 96 119 119 82 82 Total Orders 13 | . . . . . . 11 1 . . . . 1 . . STAY 9 | . . . . . . 7 1 . . . . 1 . . FOLLOW 2 | . . . . . . 2 . . . . . . . . EXPLORE 2 | . . . . . . 2 . . . . . . . . Ally Attacks 499 | . . . . . . 103 155 21 29 53 . 28 . 110 Total Damage 11603 | . . . . . . 2358 3139 333 768 1673 . 1254 . 2078 Kills 66 | . . . . . . 11 16 3 3 9 . 8 . 16 Allies Corrupted . | . . . . . . . . . . . . . . . Allies Melted 1 | . . . . . . . . . . 1 . . . . Intel | -11 -10 -10 -10 -7 -7 -5 -5 -5 -5 -5 -5 -4 -4 -4 ------- Run | Yrd Mat Min Sub Rec Scr Fac Ext Cet Arc Hub Gar Fac Was Fac Active Infowar (turns) 4986 | 125 63 . 458 285 . . . . . . 158 1457 1599 841 Optics 4798 | . . . 458 285 . . . . . . 158 1457 1599 841 Structural 271 | . . . . . . . . . . . . 141 . 130 Seismic 188 | 125 63 . . . . . . . . . . . . . Robot Analysis Total 5 | . . . . . 4 . . . . 1 . . . . Derelict Logs Recovered 4 | . . 2 1 . 1 . . . . . . . . . Drone Launches 2 | . . . . . . 2 . . . . . . . . Drone Recoveries 1 | . . . . . . 1 . . . . . . . . Exploration | -11 -10 -10 -10 -7 -7 -5 -5 -5 -5 -5 -5 -4 -4 -4 ------------- Run | Yrd Mat Min Sub Rec Scr Fac Ext Cet Arc Hub Gar Fac Was Fac Turns Passed 29413 | 244 2775 1591 4460 2289 6076 1653 1593 365 1628 1054 1788 1457 1599 841 Spaces Moved 13059 | 112 999 630 1748 924 2476 776 882 183 360 484 864 679 1251 691 Core 70 | 4 . . . . . . . . 66 . . . . . Treads 7156 | 108 999 630 1748 924 2476 240 . . . . 31 . . . Legs 2993 | . . . . . . 536 882 183 294 484 52 562 . . Wheels 2840 | . . . . . . . . . . . 781 117 1251 691 Hover . | . . . . . . . . . . . . . . . Flight . | . . . . . . . . . . . . . . . Fastest Speed 50 | 50 160 240 240 240 232 140 140 140 140 140 130 89 89 89 Average Speed 194 | 156 232 240 240 240 237 161 140 148 426 150 152 135 98 94 Slowest Speed 1700 | 160 320 240 240 240 240 250 140 250 1700 250 320 190 125 102 Overloaded Moves . | . . . . . . . . . . . . . . . Propulsion Burnouts . | . . . . . . . . . . . . . . . Robots Hopped 2 | . . . . . . . 2 . . . . . . . Potential Cave-ins . | . . . . . . . . . . . . . . . Cave-ins Triggered . | . . . . . . . . . . . . . . . Exploration Rate (%) 65 | 5 99 99 70 87 95 17 88 69 90 35 94 17 96 24 Regions Visited 14 Branch Regions 8 Pre-discovered Areas 9 | . 1 1 2 4 . . 1 . . . . . . . Known Exits Taken 3 | . 1 . 1 . . . . . . 1 . . . . Unknown Exits Taken 8 | 1 . 1 . 1 1 1 1 1 1 . . . . . Scrap Searched 12 | . . 3 1 . 8 . . . . . . . . . Spaces Dug 27 | . . . 18 . . 2 . . . 4 . 2 . 1 Terrain Destroyed 439 | . 22 1 18 1 . 25 113 . 9 66 17 122 8 37 Melee 7 | . . . . . . . . . . 4 . 2 . 1 Projectile 394 | . 6 1 . 1 . 25 113 . 9 62 13 120 8 36 AOE 38 | . 16 . 18 . . . . . . . 4 . . . Terrain Rammed . | . . . . . . . . . . . . . . . Walls Destroyed . | . . . . . . . . . . . . . . . Machines Disabled . | . . . . . . . . . . . . . . . Actions | -11 -10 -10 -10 -7 -7 -5 -5 -5 -5 -5 -5 -4 -4 -4 --------- Run | Yrd Mat Min Sub Rec Scr Fac Ext Cet Arc Hub Gar Fac Was Fac Total 15790 | 145 1327 682 1948 966 2688 1030 1144 248 446 639 1149 982 1585 811 Wait 1058 | . 182 7 94 5 167 68 34 30 60 18 38 80 258 17 Move 13043 | 111 998 629 1747 923 2475 775 877 182 359 484 863 679 1250 691 Hop 2 | . . . . . . . 2 . . . . . . . Pick Up 201 | 9 29 10 17 15 19 16 8 4 3 8 16 24 15 8 Fast Attach 96 | 7 7 . 1 2 1 21 5 1 3 7 15 14 7 5 Attach 45 | . . . 3 . . 6 2 2 1 8 8 10 1 4 Detach 9 | . . . . . . . 1 . . 1 4 3 . . Swap 161 | . 11 5 15 3 4 15 10 9 3 14 18 29 17 8 Drop 235 | 1 21 12 31 3 22 31 9 4 8 9 24 28 21 11 Fire 657 | 17 77 13 40 14 . 95 64 8 7 83 97 104 4 34 Melee 30 | . . . . . . . . . 2 7 . 9 11 1 Ram 1 | . . . . . . . . . . . . 1 . . Kick 8 | . . . . . . 3 4 . . . . 1 . . Crush 9 | . 2 6 . 1 . . . . . . . . . . Escape Stasis 83 | . . . . . . . . . . . 51 . . 32 Rewire 119 | . . . . . . . 112 . . . 6 . 1 . Trap . | . . . . . . . . . . . . . . . Miscellaneous 33 | . . . . . . . 16 8 . . 9 . . . Route ------- -11/Scrapyard -10/Materials (discovered 6 exits: *Mat x3 / *Min x2 / *Sub) -10/Mines (discovered 3 exits: *Mat x2 / *Sub) -10/Subcaves (discovered 3 exits: *Mat x2 / *Rec) -7/Recycling -7/Scraptown (discovered 2 exits: *Fac x2) -5/Factory (discovered 2 exits: *Fac / *Ext) -5/Extension (discovered 2 exits: *Fac / *Cet) -5/Cetus (discovered 2 exits: *Fac / [*Arc]) -5/Archives (discovered 3 exits: *Fac / *Hub x2) -5/Hub_04(d) -5/Garrison (discovered 3 exits: *Fac x3) -4/Factory -4/Waste -4/Factory (discovered 4 exits: [*Res x2] / *Upp x2) History --------- Turn | Location | Event 14 | -11/Scrapyard | Discovered new exit (range 16) 245 | -11/Scrapyard | Entered Materials 329 | -10/Materials | Build established: Mutant 373 | -10/Materials | Discovered new exit (range 16) 797 | -10/Materials | Discovered new exit (range 5) 1282 | -10/Materials | Discovered new exit (range 13) 1476 | -10/Materials | Discovered new exit (range 6) 1925 | -10/Materials | Discovered new exit (range 4) 1970 | -10/Materials | Discovered new exit (range 15) 2050 | -10/Materials | Learned Storage emergency access door positions 2077 | -10/Materials | Identified exit to Mines 2077 | -10/Materials | Identified exit to Materials 2094 | -10/Materials | Learned 2 Materials zone layouts 2102 | -10/Materials | Learned 4 Subcaves zone layouts 2125 | -10/Materials | Learned location of 2 exits from Materials 2401 | -10/Materials | Repaired Lgt. Treads 2810 | -10/Materials | Repaired Imp. Light Cannon 2843 | -10/Materials | Repaired Imp. Light Cannon 3020 | -10/Materials | Entered Mines 3102 | -10/Mines | Met a Derelict bent on vengeance 3522 | -10/Mines | Joined a pair of Derelicts in attacking an 0b10 outpost 3760 | -10/Mines | Discovered new exit (range 6) 3802 | -10/Mines | A weapon hastily lodged in a ceiling crevice suddenly fell to the ground 3969 | -10/Mines | Learned location of Zion (-6) 4271 | -10/Mines | Found a damaged Exp. Sensor Array with a note attached 4284 | -10/Mines | Found Prototype Device 4525 | -10/Mines | Learned Materials stockpile data 4611 | -10/Mines | Entered Subcaves 4612 | -10/Subcaves | Identified exit to Materials 4612 | -10/Subcaves | Identified exit to Recycling 4691 | -10/Subcaves | Shifting Twisted Machinery released Sub. Optics 4694 | -10/Subcaves | Shifting Twisted Machinery released Sub. Machine Gun 5362 | -10/Subcaves | Shifting Twisted Machinery released Mak. Shrapnel Gun 5643 | -10/Subcaves | Discovered exit to Materials (range 7) 5654 | -10/Subcaves | Ambushed by Subdweller buried in earth 5995 | -10/Subcaves | Visited 4L-MR0's lab 6029 | -10/Subcaves | Found Rainbow Chip 6255 | -10/Subcaves | Visited Clippyterm 6262 | -10/Subcaves | Learned Factory fabricator intel 6262 | -10/Subcaves | Learned Factory stockpile data 6286 | -10/Subcaves | Build established: Scavenger-Mutant 6495 | -10/Subcaves | Shifting Twisted Machinery released Mak. Light Armor Plating 6498 | -10/Subcaves | Shifting Twisted Machinery released Battle Rifle 6616 | -10/Subcaves | Met a Zionite searching for "candidates" 6700 | -10/Subcaves | Build established: Mutant 6888 | -10/Subcaves | A Subdweller sparked back to life 6888 | -10/Subcaves | A Subdweller sparked back to life 6928 | -10/Subcaves | Core integrity fell below 50% 6949 | -10/Subcaves | Found Meta Core 8227 | -10/Subcaves | Build established: Scavenger-Mutant 8561 | -10/Subcaves | Build established: Mutant 8815 | -10/Subcaves | Found SUBCON Basin 9071 | -10/Subcaves | Entered Recycling 9148 | -7/Recycling | Core integrity fell below 20% 10469 | -7/Recycling | Scanned before Scraplab entrance 10503 | -7/Recycling | Entered Scraplab 10810 | -7/Recycling | Tech Extrapolator generated special schematic: Deep Structural Scanner 11341 | -7/Recycling | Discovered new exit (range 2) 11360 | -7/Recycling | Entered Scraptown 11720 | -7/Scraptown | Visited Cave Peace 11821 | -7/Scraptown | Visited Red Mages 12737 | -7/Scraptown | Discovered new exit (range 6) 12927 | -7/Scraptown | Scanned Subdweller tech in exchange for log data 12934 | -7/Scraptown | Learned location of 1 exit from Research 13002 | -7/Scraptown | Visited Cyclists 13026 | -7/Scraptown | Visited Awakened 13069 | -7/Scraptown | Visited Bundlers 13570 | -7/Scraptown | Visited The Evicted 13618 | -7/Scraptown | Visited Shadow of the Wyrm 13803 | -7/Scraptown | Visited UFD Registry 13803 | -7/Scraptown | Registered with UFD as "Thermocircuit" 13863 | -7/Scraptown | Visited Scrapoid Research Area 13940 | -7/Scraptown | Visited Curators Association 13947 | -7/Scraptown | Tech Extrapolator generated special schematic: Machine Rigger 14043 | -7/Scraptown | Visited Science Guys 14120 | -7/Scraptown | Visited Botcube Research 14180 | -7/Scraptown | Visited Analyses Database 14291 | -7/Scraptown | Visited Abandonware Association 14329 | -7/Scraptown | Learned abandonware demo "KABOOM.EXE" 14329 | -7/Scraptown | Learned abandonware demo "POISON.EXE" 14391 | -7/Scraptown | Visited Scrapoid Pod Storage 14444 | -7/Scraptown | Visited Supply Room 14502 | -7/Scraptown | Visited Supply Room 14773 | -7/Scraptown | Entered Cyclist Reading Room 16423 | -7/Scraptown | Found Scrap Suit 16517 | -7/Scraptown | Discovered new exit (range 5) 16603 | -7/Scraptown | Visited LU-1G1's Boring Crew 16758 | -7/Scraptown | Found Botcube 17320 | -7/Scraptown | Met Optimus 17320 | -7/Scraptown | Accepted into 0bPrime 17436 | -7/Scraptown | Entered Factory 17436 | -5/Factory | Evolved 10 slots: Power x1, Propulsion x2, Utility x5, Weapon x2 17438 | -5/Factory | Loaded intel: 6 fabricator locations 18046 | -5/Factory | Attached Meta Core, gained temporary slots: Propulsion, Utility, Weapon 18048 | -5/Factory | Attached Rainbow Chip, gained temporary slots: Power, Propulsion, Utility, Weapon 18108 | -5/Factory | Discovered new exit (range 71) 18116 | -5/Factory | Scrapoid reinforcements arrived 18208 | -5/Factory | Found Scrap Suit 18572 | -5/Factory | Build established: Scavenger-Gunner 18581 | -5/Factory | Scrapoids reinforcements arrived? 18729 | -5/Factory | Botcube activated 18753 | -5/Factory | Found Scrap Suit 18786 | -5/Factory | Allied Derelicts emerged from ambush trap array 18884 | -5/Factory | Found Scrap Suit 19078 | -5/Factory | Discovered new exit (range 5) 19089 | -5/Factory | Entered Extension 19089 | -5/Extension | Accompanied by 3 allies 19262 | -5/Extension | Rescued A7 19427 | -5/Extension | Build established: Scavenger-Executioner 19512 | -5/Extension | Rescued a captive Derelict 19512 | -5/Extension | Rescued a captive Derelict 19605 | -5/Extension | Loaded intel: 2 recycling unit locations 19896 | -5/Extension | Spotted B-75 Beast 19904 | -5/Extension | Destroyed B-75 Beast 19917 | -5/Extension | Spotted B-75 Beast 19922 | -5/Extension | Destroyed B-75 Beast 20111 | -5/Extension | Rescued a captive Derelict 20113 | -5/Extension | Rescued a captive Derelict 20152 | -5/Extension | Found Botcube 20289 | -5/Extension | First assault squad dispatched 20332 | -5/Extension | Rescued a captive Derelict 20404 | -5/Extension | Rescued a captive Derelict 20405 | -5/Extension | Rescued a captive Derelict 20563 | -5/Extension | Learned location of Protoforge (-2) 20617 | -5/Extension | Discovered new exit (range 10) 20618 | -5/Extension | Discovered new exit (range 6) 20620 | -5/Extension | Disrupted transfer network 20621 | -5/Extension | P-70 Sage assimilated allied R3-PHX(g) 20648 | -5/Extension | Destroyed 9 combat bots 20682 | -5/Extension | Entered Cetus 20682 | -5/Cetus | Accompanied by 11 allies (A7) 20687 | -5/Cetus | Acquired a Cetus Manufacturing Module code from A7 20716 | -5/Cetus | Spotted Cetus Guard 20717 | -5/Cetus | Spotted Cetus Guard 20720 | -5/Cetus | Spotted Cetus Guard 20720 | -5/Cetus | Spotted Cetus Guard 20727 | -5/Cetus | Destroyed Cetus Guard 20728 | -5/Cetus | Destroyed Cetus Guard 20729 | -5/Cetus | Destroyed Cetus Guard 20729 | -5/Cetus | Allies destroyed Cetus Guard 20820 | -5/Cetus | Started Cetus Manufacturing Module 20845 | -5/Cetus | Manufactured an Enhanced Grunt 20857 | -5/Cetus | Escorted A7 to Cetus Mainframe 20870 | -5/Cetus | Manufactured an Enhanced Grunt 20890 | -5/Cetus | Discovered new exit (range 15) 20895 | -5/Cetus | Manufactured an Enhanced Grunt 20918 | -5/Cetus | Spotted Cetus Guard 20918 | -5/Cetus | Spotted Cetus Guard 20918 | -5/Cetus | Allies destroyed Cetus Guard 20920 | -5/Cetus | Manufactured an Enhanced Grunt 20921 | -5/Cetus | Spotted Cetus Guard 20921 | -5/Cetus | Spotted Cetus Guard 20925 | -5/Cetus | Allies destroyed Cetus Guard 20927 | -5/Cetus | Destroyed Cetus Guard 20928 | -5/Cetus | Destroyed Cetus Guard 20938 | -5/Cetus | Discovered new exit (range 15) 20945 | -5/Cetus | Manufactured an Enhanced Grunt 20945 | -5/Cetus | Met Revision 17 21047 | -5/Cetus | Entered Archives 21047 | -5/Archives | Accompanied by 13 allies (A7) 21052 | -5/Archives | Received a hacking code to weaken MAIN.C 21107 | -5/Archives | Lost 4 allies 21109 | -5/Archives | Discovered new exit (range 15) 21185 | -5/Archives | Discovered new exit (range 16) 21207 | -5/Archives | Discovered new exit (range 14) 22675 | -5/Archives | Entered Hub_04(d) 22675 | -5/Hub_04(d) | Accompanied by 8 allies 22828 | -5/Hub_04(d) | Found Prototype Device 22831 | -5/Hub_04(d) | Identified Exp. Thermal Shield 22835 | -5/Hub_04(d) | Lost 5 allies 22847 | -5/Hub_04(d) | Lost 4 parts (1p3w) 23015 | -5/Hub_04(d) | Lost 3 allies 23132 | -5/Hub_04(d) | Build established: Scavenger-Gunner 23356 | -5/Hub_04(d) | Garrison activated, responded to threat 23401 | -5/Hub_04(d) | Lost 4 parts (1p1u2w) 23471 | -5/Hub_04(d) | Spotted B-75 Beast 23521 | -5/Hub_04(d) | Network Hub disabled 23581 | -5/Hub_04(d) | Destroyed B-75 Beast 23611 | -5/Hub_04(d) | Lost 4 parts (2u2w) 23667 | -5/Hub_04(d) | Garrison activated, responded to threat 23682 | -5/Hub_04(d) | Spotted Lightning 23682 | -5/Hub_04(d) | Spotted Lightning 23682 | -5/Hub_04(d) | Spotted Lightning 23683 | -5/Hub_04(d) | Core integrity fell below 50% 23724 | -5/Hub_04(d) | System corruption reached 10% 23729 | -5/Hub_04(d) | Identified exit to Garrison 23729 | -5/Hub_04(d) | Entered Garrison 23757 | -5/Garrison | Lost 4 parts (1p1u2w) 23783 | -5/Garrison | Phase Generator disabled 24001 | -5/Garrison | Garrison Relay disabled 24025 | -5/Garrison | Triggered checkpoint 24110 | -5/Garrison | Garrison Relay disabled 24111 | -5/Garrison | Build established: Scavenger-Tank 24219 | -5/Garrison | Triggered checkpoint 24298 | -5/Garrison | Discovered new exit (range 15) 24374 | -5/Garrison | Triggered checkpoint 24421 | -5/Garrison | Installed Relay Interface Framework 24510 | -5/Garrison | Triggered checkpoint 24585 | -5/Garrison | Expanded RIF knowledge: Command Fork 24720 | -5/Garrison | Triggered checkpoint 24810 | -5/Garrison | Discovered new exit (range 9) 24843 | -5/Garrison | Triggered checkpoint 25018 | -5/Garrison | Triggered checkpoint 25181 | -5/Garrison | Spotted B-75 Beast 25193 | -5/Garrison | Discovered new exit (range 12) 25200 | -5/Garrison | Spotted B-86 Titan 25248 | -5/Garrison | Spotted Executioner 25267 | -5/Garrison | Core integrity fell below 20% 25272 | -5/Garrison | Destroyed Executioner 25281 | -5/Garrison | Triggered checkpoint 25298 | -5/Garrison | Spotted Executioner 25336 | -5/Garrison | Destroyed Executioner 25364 | -5/Garrison | Found Prototype Processor 25364 | -5/Garrison | Identified Exp. Core Analyzer 25390 | -5/Garrison | Rewired Executioner 25421 | -5/Garrison | Found Exp. Core Analyzer 25517 | -5/Garrison | Entered Factory 25517 | -4/Factory | Accompanied by 1 ally 25517 | -4/Factory | Evolved 2 slots: Propulsion x2 25528 | -4/Factory | Loaded intel: 8 recycling unit locations 25606 | -4/Factory | Identified Exp. Sensor Array 25790 | -4/Factory | Fabricated Deep Structural Scanner? 26517 | -4/Factory | First assault squad dispatched 26730 | -4/Factory | Lost 5 parts (1n4w) 26773 | -4/Factory | Scrapoid reinforcements arrived 26785 | -4/Factory | Found Scrap Suit 26832 | -4/Factory | Murdered 3 allies 26890 | -4/Factory | Found Scrap Suit 26907 | -4/Factory | Destroyed 8 combat bots 26914 | -4/Factory | Core integrity fell below 50% 26950 | -4/Factory | System corruption reached 10% 26974 | -4/Factory | Sucked down chute 26974 | -4/Factory | Entered Waste 26975 | -4/Waste | Joined by Warlord forces that had cleared the area 27032 | -4/Waste | Murdered 4 allies 27097 | -4/Waste | Build established: Scavenger-Scrapper 27434 | -4/Waste | Discovered new exit (range 13) 28327 | -4/Waste | Botcube activated 28347 | -4/Waste | Botcube completed mutation into legged form, armed with 2 guns. 28573 | -4/Waste | Entered Factory 28573 | -4/Factory | Accompanied by 16 allies 28712 | -4/Factory | Found Prototype Processor 28712 | -4/Factory | Identified Exp. Signal Interpreter 28719 | -4/Factory | Found Faulty Exp. Signal Interpreter 28726 | -4/Factory | Found Exp. Signal Interpreter 28756 | -4/Factory | Identified exit to Upper Caves 28846 | -4/Factory | Discovered new exit (range 21) 29004 | -4/Factory | Garrison activated, responded to threat 29173 | -4/Factory | Tech Extrapolator generated special schematic: Energy Deflector 29218 | -4/Factory | Discovered new exit (range 21) 29340 | -4/Factory | Loaded intel: 8 recycling unit locations 29402 | -4/Factory | Garrison activated, responded to threat 29414 | -4/Factory | Cargo convoy interrupted 29414 | -4/Factory | Self-destructed Last Messages --------------- 29401_ System corrupted: Component data lost. 29402_ System corrupted: Railgun jammed. 29402_ H-77 Assassin calls for garrison reinforcements. 29402_ ALERT: Activating Garrison Access F002. 29405_ Slug penetrates Wall. 29405_ Slug penetrates G-67 Veteran. 29405_ G-67 Veteran destroyed. 29405_ H-77 Assassin destroyed. 29409_ Acquired Lgt. Nuclear Core. 29413_ H-77 Assassin unfolds itself. 29413_ Slug penetrates Mutated Botcube. 29413_ Ovr. Huge Scrapsphere repairs itself (+6). 29413_ Acquired 15 matter. 29414_ ALERT: Cargo convoy interrupted, initiating access lockdown. 29414_ Striker unfolds itself. 29414_ Slug penetrates Mutated Botcube. 29414_ Slug penetrates Wall. 29414_ Slug penetrates X5-8OF(b). 29414_ Slug penetrates Mutated Botcube. 29414_ Slug penetrates Wall. Map ----- +----------------------------------------------------+ | ????????????????????????????????????????? | | ????????????????????????????????????????? | | ????????????????????????????????????????? | | ????????????????????????????????????????? | | ????????????????????????????????????????? | | ????????????##??????????????????????????? | | ????????????#;#####?????????????????????? | | ????????????+ ?????????????????????? | | ????????????# #?????????????????????? | | ????????????# ##????????????????????? | | ????????????# ;###??????????????????? | | ????????????# ???????????????????? | | ????????????+ ????????????????????? | | ????????????# ?????????????????????? | | ????????????# #?????????????????????? | | ????????????# #?????????????????????? | | ????????????#* #?????????????????????? | | ????????????!%! #?????????????????????? | | ????????????#! #?????????????????????? | | ??????????### #?????????????????????? | | ??????????# # #?????????????????????? | | ??????????# ; #?????????????????????? | | ??#########;; #?????????????????????? | | ??# ] !! = #?????????????????????? | | ??# ! # #?????????????????????? | | ??# ! # @ #?????????????????????? | | ??# # [%* ??????????????????? | | ??# " " # [;% #??????????????? | | ??# "Y" ! / # =[%=! #??????????????? | | ??# """ # %!=; #??????????????? | | ??# #* !=[##;;;#######+?????????? | | ??######+#+##%[%[% ????????? | | ???????# gb= ^ ????????? | | ???????# ! [ ^K ????????? | | ???????# == p ???????? | | ???????###%[b! M ^ h ???????? | | ??????####%####;;#;;###########?????????? | | ??????# [ #????????????????? | | ??????# """ """ """ #????????????????? | | ??????# "Y" """ """ #????????????????? | | ??????# " " """ """ #????????????????? | | ??????# #????????????????? | | ??????# """ """ """ #????????????????? | | ??????#! """ """ """ #????????????????? | | ??????# """ """ """ #????????????????? | | ??????# !#????????????????? | | ############/###########????????????????? | | # ## ### #??????????????????? | | # # #??????????????????? | | # + " #??????????????????? | +----------------------------------------------------+ Best States ------------- Heat Dissipation 97 Coolant Potential 80 Energy Generation 45 Energy Capacity 600 Matter Stores 300 Matter Capacity 300 Sight Range 23 Terrain Scan Density 10 EM Shielding 2 Armor Coverage 450 Resistance: TH 30 Evasion (%) 55 Launcher Accuracy 30 Core Analysis 8 Recoil Reduction 4 Salvage Targeting 4 Offensive Hacking 12 Defensive Hacking 10 Authchip Count 13 Item Schematics ----------------- Hvy. Ion Cannon | -7/Recycling | Hacked Hvy. Battle Rifle | -7/Recycling | Extrapolated Deep Structural Scanner | -7/Recycling | Extrapolated Beamcaster | -7/Recycling | Extrapolated Mak. Light Armor Plating | -7/Recycling | Extrapolated Spk. Treads | -7/Scraptown | Extrapolated Spk. Medium Treads | -7/Scraptown | Extrapolated Mak. Leg | -7/Scraptown | Extrapolated Mak. Medium Armor Plating | -7/Scraptown | Extrapolated Mak. Ablative Armor | -7/Scraptown | Extrapolated Mak. Power Source | -7/Scraptown | Extrapolated Mak. Coolant Network | -7/Scraptown | Extrapolated Mak. Laser | -7/Scraptown | Extrapolated Machine Rigger | -7/Scraptown | Extrapolated 0b10 Decoder Chip [Scout] | -7/Scraptown | Extrapolated Battle Cannon | -7/Scraptown | Extrapolated Lgt. Humpback | -7/Scraptown | Extrapolated 0b10 Decoder Chip [Generic] | -7/Scraptown | Extrapolated 0b10 Decoder Chip [Skirmisher] | -7/Scraptown | Extrapolated Tactical Coordination Suite | -5/Factory | Extrapolated Mak. Thermal Plating | -5/Factory | Extrapolated Adv. Coolant Injector | -5/Factory | Hacked Multireflex Exoskeleton | -5/Factory | Extrapolated Cmb. Linear Gravjet | -5/Factory | Downloaded Multitool | -5/Factory | Extrapolated Mak. Core Shielding | -5/Extension | Extrapolated Recoil Stabilizer | -5/Extension | Hacked Mak. Hacking Suite | -5/Extension | Extrapolated Mak. System Shield | -5/Extension | Extrapolated Imp. Arc Projector | -5/Extension | Hacked Hvy. Beamcaster | -5/Extension | Extrapolated Mak. Flight Unit | -5/Extension | Extrapolated Mak. System Restoration Module | -5/Cetus | Extrapolated Mapping Drone Bay | -5/Cetus | Extrapolated Mak. Heavy Armor Plating | -5/Archives | Extrapolated Mak. Targeting Computer | -5/Garrison | Extrapolated Spk. Heavy Treads | -5/Garrison | Extrapolated Mak. Sensor Array | -4/Factory | Extrapolated Mak. Shrapnel Gun | -4/Factory | Extrapolated Bore Cannon | -4/Factory | Extrapolated Mak. Propulsion Shielding | -4/Waste | Extrapolated Mak. Utility Shielding | -4/Factory | Extrapolated 0b10 Decoder Chip [Looter] | -4/Factory | Extrapolated Humpback | -4/Factory | Extrapolated Energy Deflector | -4/Factory | Extrapolated Robot Schematics ------------------ M-13 Machinist | -10/Materials | Hacked Fabricated ------------ Deep Structural Scanner | x1 | -4/Factory Repaired ---------- Lgt. Treads | 13% | -10/Materials Imp. Light Cannon | 56% | -10/Materials Imp. Light Cannon | 62% | -10/Materials Alien Tech Used ----------------- None Achievements -------------- None Challenges ------------ None Game ------ Seed AlertCooledDriver Manual? 0 Play Time 03:35:54 Cumulative 894.0 hours Start 2025.06.09 @ 22:03:02 End 2025.06.10 @ 21:51:38 Sessions 3 Manual Loads 0 Difficulty Rogue Special Mode None Game No. 482 Rogue 482 Adventurer 0 Explorer 0 Win Type - Total 22 Types 10/3/3/0/1/1/2/2/0/0 Lore% 84 Gallery% 85 Achievement% 83 Wizard Run 0 Options --------- Layout 0 ASCII 0 Keyboard 0 Movement Numpad Keybinds 0 Fullscreen 2 Font 24/Smallcaps Map View 76x50 Zoom Use 0% Tactical HUD 1 Map Filters NONE Filters NONE Steam 1 RUN: c4af6654-2543-4e45-9ed3-951fb948ae02